lending/lending_fUSD_20250411
["ID","MTS","AMOUNT","RATE_DAILY","PERIOD"]
[357698057,1744342245618,-318.8803487,0.0002,2]
[357698058,1744342245628,-4477.19137749,0.0002,2]
[357698059,1744342245774,-384.16329,0.0002,2]
[357698061,1744342403845,1011.9221237,0.00033,120]
[357698062,1744343231132,-471.22433742,0.00017917,2]
[357698063,1744343235678,-634.32566258,0.00017917,2]
[357698064,1744343235697,-7980.181391,0.00019004,2]
[357698065,1744343235717,-1803.87780636,0.000191,2]
[357698093,1744343431637,-250.0,0.00019,2]
[357698094,1744343431647,-4847.80270337,0.000192,2]
[357698096,1744343431656,-433.13754837,0.00019251,2]
[357698098,1744343431666,-159.42,0.00019351,2]
[357698099,1744343431676,-500.0,0.00019753,2]
[357698101,1744343431685,-300.0,0.00019808,2]
[357698102,1744343431695,-150.0,0.00019809,2]
[357698103,1744343431705,-5923.7493156,0.00019809,2]
[357698104,1744343431715,-231.91568059,0.00019809,2]
[357698105,1744343431725,-65173.5378216,0.0001981,2]
[357698106,1744343431735,-1000.0,0.00019835,2]
[357698107,1744343431744,-1302.8117,0.000199,2]
[357698108,1744343431754,-2671.6724,0.000199,2]
[357698109,1744343431763,-377.9554,0.000199,2]
[357698110,1744343431772,-5343.1035,0.000199,2]
[357698111,1744343431782,-224.3698,0.000199,2]
[357698112,1744343431791,-315.6185,0.000199,2]
[357698113,1744343431801,-151.96455844,0.000199,2]
[357698114,1744343431810,-1360.1493,0.000199,2]
[357698115,1744343431819,-1583.982,0.000199,2]
[357698116,1744343431828,-168.00013281,0.000199,2]
[357698117,1744343431838,-2500.0,0.000199,2]
[357698118,1744343431847,-1122.43307556,0.000199,2]
[357698119,1744343431857,-388.24143044,0.00019922,2]
[357698120,1744343431866,-514.42692592,0.00019973,2]
[357698121,1744343431875,-391.54396359,0.00019973,2]
[357698122,1744343431884,-500.0,0.00019973,2]
[357698123,1744343431895,-547.83968565,0.00019973,2]
[357698124,1744343431905,-200.0,0.00019977,7]
[357698125,1744343431915,-3555.6564912,0.00019986,2]
[357698126,1744343431924,-1320.4311342,0.00019986,2]
[357698128,1744343431934,-6338.5829212,0.00019986,2]
[357698130,1744343431943,-18056.0681192,0.00019986,2]
[357698132,1744343431952,-1096.58,0.00019999,2]
[357698134,1744343431961,-1096.58,0.00019999,2]
[357698136,1744343431971,-1096.58,0.00019999,2]
[357698138,1744343431980,-1096.58,0.00019999,2]
[357698140,1744343431989,-1096.58,0.00019999,2]
[357698142,1744343431999,-1096.58,0.00019999,2]
[357698144,1744343432007,-1096.58,0.00019999,2]
[357698146,1744343432016,-1096.58,0.00019999,2]
[357698147,1744343432030,-1096.58,0.00019999,2]
[357698149,1744343432040,-1096.58,0.00019999,2]
[357698152,1744343432049,-1096.58,0.00019999,2]
[357698154,1744343432058,-1096.58,0.00019999,2]
[357698157,1744343432067,-1096.58,0.00019999,2]
[357698158,1744343432076,-1096.58,0.00019999,2]
[357698159,1744343432085,-1096.58,0.00019999,2]
[357698160,1744343432095,-1096.58,0.00019999,2]
[357698161,1744343432105,-1096.58,0.00019999,2]
[357698162,1744343432114,-1096.58,0.00019999,2]
[357698163,1744343432123,-1096.58,0.00019999,2]
[357698164,1744343432132,-1096.58,0.00019999,2]
[357698165,1744343432141,-1096.58,0.00019999,2]
[357698166,1744343432151,-1096.58,0.00019999,2]
[357698167,1744343432160,-1096.58,0.00019999,2]
[357698168,1744343432169,-1096.69734216,0.00019999,2]
[357698169,1744343432178,-197517.78198811,0.0002,2]
[357698170,1744343432191,-123906.18898988,0.0002,2]
[357698171,1744343432200,-41416.00835284,0.0002,2]
[357698173,1744343432209,-31989.53348464,0.0002,2]
[357698175,1744343432225,-697.00991995,0.0002,2]
[357698177,1744343432235,-8233.22500066,0.0002,2]
[357698181,1744343432263,-180.11,0.00019662,2]
[357698183,1744343432273,-512.4427292,0.0002,2]
[357698185,1744343432284,-1000.09,0.0002,2]
[357698186,1744343432299,-6074.53213708,0.0002,2]
[357698187,1744343432310,-14950.03395671,0.0002,2]
[357698188,1744343432321,-54553.3458891,0.0002,2]
[357698191,1744343437763,-917.97769497,0.00019986,2]
[357698192,1744343437775,-1923.99175777,0.00019986,2]
[357698193,1744343437787,-152.93037926,0.00019986,2]
[357698194,1744343437796,-266.4044946,0.0002,2]
[357698195,1744343437926,-458.84855654,0.0002,2]
[357698196,1744343437982,-663.85289851,0.0002,2]
[357698197,1744343437993,-791.29049999,0.0002,2]
[357698198,1744343438005,-740.75,0.0002,2]
[357698199,1744343438092,-673.91226938,0.0002,2]
[357698200,1744343438149,-1070526.6644019,0.0002,2]
[357698204,1744343439927,-1207.485,0.0002,2]
[357698205,1744343440059,-293.22318818,0.0002,2]
[357698206,1744343440214,-1748.59475086,0.0002,2]
[357698207,1744343440226,-3798.64934476,0.0002,2]
[357698226,1744343445701,-707.2528112,0.000199,2]
[357698227,1744343445918,-292.7471888,0.000199,2]
[357698228,1744343445927,-79.59009107,0.000199,2]
[357698229,1744343445938,-91.97859791,0.000199,2]
[357698230,1744343445948,-21642.71098912,0.0002,2]
[357698231,1744343446065,-72969.89613538,0.0002,2]
[357698240,1744343470047,161.82,0.00016969,2]
[357698241,1744344006716,-169.29,0.00016712,2]
[357698242,1744344006739,-15.38912141,0.00018256,2]
[357698243,1744344334202,-1084.15,0.00018026,2]
[357698244,1744344334224,-234.61087859,0.00018256,2]
[357698245,1744344334245,-250.0,0.00018384,2]
[357698246,1744344334265,-184.679122,0.00019154,2]
[357698247,1744344334286,-250.0,0.00019251,2]
[357698248,1744344334307,-1573.63105688,0.000199,2]
[357698249,1744344432089,-436.1855553,0.00019761,2]
[357698250,1744344432109,-597.14929296,0.000198,2]
[357698251,1744344440138,-120.39646467,0.000198,2]
[357698252,1744344440159,-250.0,0.0001985,2]
[357698253,1744344440181,-300.0,0.00019899,2]
[357698254,1744344440202,-10776.10784244,0.000199,2]
[357698255,1744344631694,-5003.73145794,0.000199,2]
[357698257,1744344631751,-9504.6776822,0.000199,2]
[357698258,1744344631761,-8097.1496,0.000199,2]
[357698259,1744344631770,-151.96455844,0.000199,2]
[357698260,1744344631779,-2500.0,0.000199,2]
[357698261,1744344631788,-748.28871704,0.000199,2]
[357698262,1744344631798,-5308.64687736,0.000199,2]
[357698263,1744344631808,-250.0,0.00019913,2]
[357698264,1744344631817,-160.43731945,0.00019973,2]
[357698265,1744344631827,-15139.8561505,0.00019986,2]
[357698266,1744344631836,-946.22415867,0.00019986,2]
[357698267,1744344631847,-21.37952373,0.00019986,2]
[357698268,1744344631856,-287.41047627,0.00019986,2]
[357698269,1744344631879,-1716.35675238,0.00019986,2]
[357698270,1744344631890,-2641.10671985,0.00019986,2]
[357698271,1744344631899,-3607.74,0.00019993,2]
[357698272,1744344631908,-8990.22827949,0.0002,2]
[357698273,1744344631919,-21662.37454988,0.0002,2]
[357698274,1744344631979,-851.36491732,0.0002,2]
[357698302,1744344637855,-3774.53643325,0.0002,2]
[357698303,1744344637967,-472.560984,0.0002,2]
[357698304,1744344638027,-1428.45706008,0.0002,2]
[357698305,1744344638039,-11658.055554,0.0002,2]
[357698306,1744344638081,-265.71883021,0.0002,2]
[357698307,1744344638191,-411.85352292,0.0002,2]
[357698308,1744344638203,-305.93319112,0.0002,2]
[357698309,1744344638214,-472.62995204,0.0002,2]
[357698317,1744344639966,-1406.24349477,0.0002,2]
[357698318,1744344639977,-1840.0,0.0002,2]
[357698319,1744344640023,-727.40483639,0.0002,2]
[357698320,1744344640033,-17004.07780853,0.0002,2]
[357698321,1744344640045,-1583.37340851,0.0002,2]
[357698322,1744344640079,-2747.06849558,0.0002,2]
[357698323,1744344640188,-535.85788251,0.0002,2]
[357698324,1744344640199,-1919.38462928,0.0002,2]
[357698325,1744344640211,-10720.17676449,0.0002,2]
[357698326,1744344640297,-274.61027515,0.0002,2]
[357698327,1744344640308,-2612.30408965,0.0002,2]
[357698338,1744344643087,-453.0,0.0002,2]
[357698339,1744344643104,-500.0,0.0002,2]
[357698340,1744344643183,-869.30755836,0.0002,2]
[357698341,1744344643201,-1759.35999998,0.0002,2]
[357698342,1744344643218,-1118.65270452,0.0002,2]
[357698345,1744344646009,-688.62263816,0.0002,2]
[357698346,1744344646074,-546.8545539,0.0002,2]
[357698347,1744344646085,-52537.0,0.0002,2]
[357698348,1744344646096,-326.88027612,0.0002,2]
[357698350,1744344646532,-3239.60707612,0.0002,2]
[357698351,1744344847610,614.26386397,7.945e-05,2]
[357698352,1744344847631,11.02488203,7.945e-05,2]
[357698353,1744345109254,-190.37890704,0.00018741,2]
[357698354,1744345109277,-175.35994719,0.00018741,2]
[357698355,1744345109300,-3051.53,0.00018744,2]
[357698356,1744345109321,-1489.05964723,0.00018841,2]
[357698357,1744345109343,-93.67149854,0.0001894,2]
[357698358,1744345200631,-150.0,0.00018725,2]
[357698359,1744345200652,-278.65,0.00018734,2]
[357698360,1744345200674,-4018.27,0.00018739,2]
[357698361,1744345201802,300.0,0.0001894,2]
[357698362,1744345207982,253.08,0.00018734,2]
[357698363,1744345220669,-179.21,0.0001682,2]
[357698364,1744345393044,150.0,0.00016631,2]
[357698365,1744345393737,-150.0,0.0001682,2]
[357698366,1744345395466,-169.2879,0.0001682,2]
[357698367,1744345449906,-229.98,0.00016631,2]
[357698368,1744345508937,1691.654562,7.945e-05,2]
[357698369,1744345509234,-237.55373805,0.0001682,2]
[357698370,1744345536112,-330.20836195,0.0001682,2]
[357698371,1744345536132,-27.4987438,0.00017635,2]
[357698372,1744345601272,-222.5012562,0.00017635,2]
[357698373,1744345601296,-250.0,0.00018068,2]
[357698374,1744345601320,-250.0,0.00018502,2]
[357698375,1744345601343,-890.310903,0.00018511,2]
[357698376,1744345601366,-293.75064409,0.00018604,2]
[357698377,1744345601388,-196.13,0.00018682,2]
[357698378,1744345601412,-1000.0,0.00018703,2]
[357698379,1744345601434,-6329.41,0.00018704,2]
[357698380,1744345601458,-310.58,0.00018717,2]
[357698381,1744345601481,-200.0,0.00018722,7]
[357698382,1744345601505,-47.86,0.00018734,2]
[357698383,1744345601529,-786.0804,0.00018841,2]
[357698384,1744345601552,-175.35994717,0.000189,2]
[357698385,1744345601575,-6246.55177072,0.00018941,2]
[357698386,1744345601598,-250.0,0.00019,2]
[357698387,1744345601620,-10784.02728149,0.00019,2]
[357698388,1744345601642,-722.0,0.00019,2]
[357698389,1744345601666,-1066.26,0.00019084,2]
[357698390,1744345601689,-168.84,0.0001931,2]
[357698391,1744345601713,-250.0,0.00019398,2]
[357698392,1744345601737,-435.41459486,0.00019541,2]
[357698393,1744345601759,-179.0,0.00019588,2]
[357698394,1744345601781,-1157.5,0.00019589,2]
[357698395,1744345601802,-10216.23,0.00019589,2]
[357698396,1744345601828,-475.93,0.00019589,2]
[357698397,1744345601850,-200.0,0.00019589,2]
[357698398,1744345601873,-475.93,0.00019594,2]
[357698399,1744345601896,-475.93,0.00019599,2]
[357698400,1744345601918,-5559.0,0.000196,3]
[357698401,1744345601940,-475.93,0.00019604,2]
[357698402,1744345601964,-475.93,0.00019609,2]
[357698403,1744345601987,-475.93,0.00019614,2]
[357698404,1744345602010,-475.93,0.00019619,2]
[357698405,1744345602034,-475.93,0.00019625,2]
[357698406,1744345602060,-475.93,0.0001963,2]
[357698407,1744345602083,-475.93,0.00019635,2]
[357698408,1744345602110,-475.93,0.0001964,2]
[357698409,1744345602133,-475.93,0.00019645,2]
[357698410,1744345602155,-475.93,0.0001965,2]
[357698411,1744345602179,-475.93,0.00019656,2]
[357698412,1744345602202,-475.93,0.00019661,2]
[357698413,1744345602225,-475.93,0.00019666,2]
[357698414,1744345602249,-475.93,0.00019671,2]
[357698415,1744345602273,-475.93,0.00019676,2]
[357698416,1744345602296,-475.93,0.00019681,2]
[357698417,1744345602321,-175.35994717,0.00019683,2]
[357698418,1744345602345,-475.93,0.00019686,2]
[357698419,1744345602370,-150.0,0.00019717,2]
[357698420,1744345602393,-500.0,0.00019717,2]
[357698421,1744345602417,-500.0,0.00019717,2]
[357698422,1744345602440,-360.9223716,0.00019717,2]
[357698423,1744345602465,-15878.89,0.00019718,2]
[357698424,1744345602489,-150.0,0.00019729,2]
[357698425,1744345602514,-150.0,0.00019729,2]
[357698426,1744345602538,-150.0,0.00019737,2]
[357698427,1744345602564,-150.0,0.0001974,2]
[357698428,1744345602593,-150.0,0.0001974,2]
[357698429,1744345602620,-150.0,0.0001975,2]
[357698430,1744345602645,-23900.0,0.00019755,2]
[357698431,1744345602671,-150.0,0.00019758,2]
[357698432,1744345602701,-150.0,0.00019762,2]
[357698433,1744345602731,-300.0,0.00019763,2]
[357698434,1744345602761,-150.0,0.00019765,2]
[357698435,1744345602786,-150.0,0.00019772,2]
[357698436,1744345602814,-150.0,0.00019773,2]
[357698437,1744345602839,-150.0,0.00019779,2]
[357698438,1744345602864,-150.0,0.00019789,2]
[357698439,1744345602888,-150.0,0.00019798,2]
[357698440,1744345602910,-1005.177,0.000198,2]
[357698441,1744345602933,-224.3698,0.000198,2]
[357698442,1744345602956,-315.6185,0.000198,2]
[357698443,1744345602989,-4947.5651,0.000198,2]
[357698444,1744345603019,-150.0,0.0001981,2]
[357698445,1744345603044,-150.0,0.0001981,2]
[357698446,1744345603069,-150.0,0.00019812,2]
[357698447,1744345603094,-150.0,0.00019812,2]
[357698448,1744345603119,-150.0,0.00019821,2]
[357698449,1744345603144,-150.0,0.00019824,2]
[357698450,1744345603170,-150.0,0.00019826,2]
[357698451,1744345603195,-150.0,0.00019831,2]
[357698452,1744345603220,-150.0,0.00019839,2]
[357698453,1744345603244,-150.0,0.00019839,2]
[357698454,1744345603271,-150.0,0.00019841,2]
[357698455,1744345603296,-150.0,0.00019849,2]
[357698456,1744345603322,-150.0,0.0001985,2]
[357698457,1744345603347,-150.0,0.00019864,2]
[357698458,1744345603373,-150.0,0.00019868,2]
[357698459,1744345603399,-150.0,0.00019874,2]
[357698460,1744345603425,-150.0,0.00019877,2]
[357698461,1744345603452,-150.0,0.00019879,2]
[357698462,1744345603479,-196.11473614,0.00019884,2]
[357698463,1744345603506,-150.0,0.00019884,2]
[357698464,1744345603532,-967.67165665,0.00019886,2]
[357698465,1744345603558,-15781.2685,0.00019886,2]
[357698466,1744345603584,-1500.0,0.00019886,2]
[357698467,1744345603611,-150.0,0.00019889,2]
[357698468,1744345603646,-150.0,0.00019893,2]
[357698469,1744345603677,-150.0,0.00019898,2]
[357698470,1744345603708,-150.0,0.00019899,2]
[357698471,1744345603737,-171.56868897,0.000199,2]
[357698472,1744345603762,-299.1995,0.000199,2]
[357698473,1744345603785,-5242.9812,0.000199,2]
[357698474,1744345603809,-56332.6315,0.000199,2]
[357698475,1744345603832,-3646.8691,0.000199,2]
[357698476,1744345603857,-1000.0,0.000199,2]
[357698477,1744345603880,-500.0,0.000199,2]
[357698478,1744345603904,-36076.3846,0.000199,2]
[357698479,1744345603927,-1000.0,0.000199,2]
[357698480,1744345603950,-2500.0,0.000199,2]
[357698481,1744345603976,-151.97238896,0.000199,2]
[357698482,1744345604001,-235.6225,0.000199,2]
[357698483,1744345604027,-150.0,0.00019908,2]
[357698484,1744345604053,-150.0,0.00019915,2]
[357698485,1744345604079,-150.0,0.00019915,2]
[357698486,1744345604104,-150.0,0.00019924,2]
[357698487,1744345604128,-435.41459487,0.00019929,2]
[357698488,1744345604154,-150.0,0.00019935,2]
[357698489,1744345604181,-150.0,0.00019943,2]
[357698490,1744345604210,-150.0,0.00019944,2]
[357698491,1744345604239,-150.0,0.00019944,2]
[357698492,1744345604271,-150.0,0.00019946,2]
[357698493,1744345604300,-150.0,0.00019949,2]
[357698494,1744345604327,-150.0,0.00019957,2]
[357698495,1744345604354,-150.0,0.00019961,2]
[357698496,1744345604381,-150.0,0.00019961,2]
[357698497,1744345604407,-150.0,0.00019969,2]
[357698498,1744345604433,-150.0,0.00019982,2]
[357698499,1744345604460,-150.0,0.00019985,2]
[357698500,1744345604488,-461.3373518,0.00019986,2]
[357698501,1744345604513,-2197.1609044,0.00019986,2]
[357698502,1744345604537,-4752.6565231,0.00019986,2]
[357698503,1744345604561,-2534.5455414,0.00019986,2]
[357698504,1744345604584,-1000.0,0.00019986,2]
[357698505,1744345604606,-946.0,0.00019986,2]
[357698506,1744345604631,-2844.051614,0.00019986,2]
[357698507,1744345604658,-2100604.94066905,0.0002,2]
[357698508,1744345634174,-300.0,0.000195,7]
[357698509,1744345634196,-700.0,0.000196,7]
[357698510,1744345634219,-1100.0,0.000197,7]
[357698511,1744345634240,-1500.0,0.000198,7]
[357698512,1744345634261,-498.85914468,0.000199,2]
[357698513,1744345634283,-1900.0,0.000199,7]
[357698514,1744345634304,-4457.2687251,0.00019986,2]
[357698515,1744345634325,-300.0,0.00019999,2]
[357698516,1744345634346,-206.0,0.00019999,2]
[357698517,1744345634371,-1369.90770398,0.0002,2]
[357698544,1744345831956,-1595.38862134,0.000193,5]
[357698545,1744345832012,-1579.13148732,0.000193,5]
[357698546,1744345832127,-2384.47989134,0.000193,5]
[357698547,1744345832136,-648.6143,0.000198,2]
[357698548,1744345832145,-1533.045,0.000198,2]
[357698549,1744345832155,-250.0,0.00019882,2]
[357698550,1744345832164,-3539.09791824,0.000199,2]
[357698551,1744345832173,-367.88358766,0.0001997,2]
[357698552,1744345832182,-160.43731945,0.00019973,2]
[357698553,1744345832191,-500.0,0.00019973,2]
[357698555,1744345832201,-467.3089124,0.0001998,2]
[357698557,1744345832210,-927.8466466,0.00019986,2]
[357698558,1744345832219,-9508.4513084,0.00019986,2]
[357698559,1744345832228,-4914.7675403,0.00019986,2]
[357698560,1744345832238,-11959.22962468,0.0002,2]
[357698561,1744345832249,-331.14851368,0.0002,2]
[357698562,1744345832261,-447.9066844,0.0002,2]
[357698578,1744345838041,-394.52199375,0.0002,2]
[357698580,1744345838121,-5047.84562163,0.0002,2]
[357698581,1744345838133,-546.28177871,0.0002,2]
[357698582,1744345838144,-553.60608649,0.0002,2]
[357698583,1744345838190,-6236.65959755,0.0002,2]
[357698584,1744345838202,-480.02925301,0.0002,2]
[357698585,1744345838214,-6588.36720903,0.0002,2]
[357698586,1744345838249,-387.27,0.0002,2]
[357698625,1744345840052,-460.42186383,0.0002,2]
[357698626,1744345840116,-2920.09966486,0.0002,2]
[357698627,1744345840128,-256.17314926,0.0002,2]
[357698628,1744345840140,-1101.92499987,0.0002,2]
[357698629,1744345840151,-1554.15206017,0.0002,2]
[357698630,1744345840164,-4628.10344169,0.0002,2]
[357698631,1744345840267,-265.62793589,0.0002,2]
[357698632,1744345840278,-1429.87219423,0.0002,2]
[357698633,1744345840363,-37594.05650001,0.0002,2]
[357698634,1744345840424,-931.12303948,0.0002,2]
[357698635,1744345840500,-500.5664775,0.0002,2]
[357698641,1744345843357,-481.30230864,0.0002,2]
[357698650,1744345847280,-3923.04227342,0.0002,2]
[357698651,1744345847291,-1414.78558148,0.0002,2]
[357698652,1744346048228,1838.97511797,7.945e-05,2]
[357698653,1744346048249,2000.0,7.945e-05,2]
[357698654,1744346048271,1269.81013203,7.945e-05,2]
[357698655,1744346390476,264.041113,0.00033,120]
[357698656,1744346851139,-584.0287042,0.00018702,2]
[357698657,1744346853795,-1219.84910216,0.00018702,2]
[357698658,1744346853817,-1058.31,0.00018802,2]
[357698659,1744346853838,-2000.0,0.00019231,2]
[357698660,1744346853860,-250.0,0.00019384,2]
[357698661,1744346853881,-502.0,0.00019452,2]
[357698662,1744346853902,-434.51514103,0.00019457,2]
[357698663,1744346853923,-157.71903592,0.00019475,2]
[357698664,1744346853943,-150.0,0.00019499,2]
[357698665,1744346853964,-1471.43,0.00019539,2]
[357698666,1744346853984,-159.42,0.00019552,2]
[357698667,1744346854004,-529.95,0.00019575,2]
[357698668,1744346854026,-300.0,0.00019579,2]
[357698669,1744346854047,-2376.64518647,0.0001958,2]
[357698670,1744346860643,-574.1558369,0.0001958,2]
[357698676,1744347032218,-250.0,0.00019,2]
[357698677,1744347032227,-200.0,0.00019586,2]
[357698678,1744347032238,-225.88,0.00019591,2]
[357698679,1744347032247,-1000.0,0.00019626,2]
[357698680,1744347032257,-17033.75,0.00019679,2]
[357698681,1744347032267,-913.22,0.00019683,2]
[357698682,1744347032277,-1852.42,0.000197,2]
[357698683,1744347032286,-185.36,0.00019715,2]
[357698684,1744347032295,-200.0,0.00019724,7]
[357698685,1744347032305,-3649.45,0.00019787,2]
[357698686,1744347032314,-500.0,0.00019835,2]
[357698687,1744347032323,-203.0406,0.000199,2]
[357698688,1744347032333,-583.62108184,0.000199,2]
[357698689,1744347032344,-4074.27038845,0.000199,2]
[357698690,1744347032355,-28214.32006012,0.000199,2]
[357698691,1744347032367,-992.32608986,0.000199,2]
[357698692,1744347032378,-1397.7819348,0.000199,2]
[357698694,1744347032389,-2441.56500959,0.000199,2]
[357698696,1744347032401,-1617.5918039,0.000199,2]
[357698698,1744347032412,-12683.62994,0.000199,2]
[357698699,1744347032423,-2247.27569144,0.000199,2]
[357698700,1744347032432,-1661.0542,0.000199,2]
[357698701,1744347032442,-1000.0,0.000199,2]
[357698702,1744347032451,-293.50566106,0.000199,2]
[357698703,1744347032463,-206.49433894,0.000199,2]
[357698704,1744347032472,-6870.80797688,0.000199,2]
[357698705,1744347032483,-684.22367525,0.000199,2]
[357698706,1744347032510,-1322.75940572,0.000199,2]
[357698709,1744347038163,-809.33,0.000199,2]
[357698710,1744347038305,-418.035,0.000199,2]
[357698711,1744347038318,-25971.22854215,0.000199,2]
[357698712,1744347038327,-1500.0,0.000199,2]
[357698713,1744347038337,-14453.5043293,0.000199,2]
[357698714,1744347038346,-2500.0,0.000199,2]
[357698715,1744347038356,-332.57276312,0.000199,2]
[357698716,1744347038366,-2359.39861216,0.000199,2]
[357698717,1744347038375,-500.0,0.00019973,2]
[357698718,1744347038384,-776.4819131,0.00019986,2]
[357698719,1744347038394,-3730.1299301,0.00019986,2]
[357698720,1744347038403,-8094.0489063,0.00019986,2]
[357698721,1744347038412,-4216.4756787,0.00019986,2]
[357698722,1744347038422,-1349.905,0.00019999,2]
[357698723,1744347038432,-5642.48039198,0.0002,2]
[357698724,1744347038503,-4234.93656582,0.0002,2]
[357698725,1744347038519,-8062.32682818,0.0002,2]
[357698726,1744347038533,-15617.98437332,0.0002,2]
[357698727,1744347038545,-5283.39758966,0.0002,2]
[357698728,1744347038558,-1701.62577812,0.0002,2]
[357698729,1744347038572,-3134.39796274,0.0002,2]
[357698730,1744347038586,-10187.87750362,0.0002,2]
[357698736,1744347040300,-1150.68699505,0.0002,2]
[357698737,1744347040730,-3773.13551301,0.000198,2]
[357698738,1744347040749,-617.23609784,0.000198,2]
[357698739,1744347040787,-639.00875615,0.000198,2]
[357698740,1744347040798,-3285.08825999,0.0002,2]
[357698759,1744347044354,-759.2,0.0002,2]
[357698760,1744347044364,-730.31247241,0.0002,2]
[357698761,1744347044384,-673.6150002,0.0002,2]
[357698762,1744347044408,-7865.59137392,0.0002,2]
[357698775,1744347046301,-901.9,0.0002,2]
[357698776,1744347048985,-10890.46,0.0002,2]
[357698777,1744347253172,161.82,0.00015724,2]
[357698779,1744347933098,-184.679122,0.00017578,2]
[357698780,1744347933119,-250.0,0.00017666,2]
[357698781,1744347933140,-1270.12,0.00017711,2]
[357698782,1744347933161,-1550.3355403,0.00018,2]
[357698783,1744348035099,-11362.91177596,0.00018,2]
[357698784,1744348050129,-1134.04649224,0.00018,2]
[357698785,1744348145091,-202.32620557,0.00018,2]
[357698786,1744348232355,-492.90731942,0.000179,2]
[357698787,1744348232424,-224.63843821,0.000179,2]
[357698788,1744348232434,-227.73017381,0.0001795,2]
[357698789,1744348232490,-22.26982619,0.0001795,2]
[357698790,1744348232499,-676.77077761,0.00018,2]
[357698798,1744348238792,-1871.10493703,0.00018,2]
[357698799,1744348238802,-174.36962056,0.00018,2]
[357698800,1744348238812,-434.75377164,0.00018139,2]
[357698801,1744348238822,-434.75377164,0.00018368,2]
[357698802,1744348238831,-200.0,0.00018651,2]
[357698803,1744348238841,-250.0,0.00018651,2]
[357698804,1744348238850,-434.75377164,0.00018769,2]
[357698805,1744348238860,-9.26336569,0.00018783,2]
[357698806,1744348238871,-234.61663431,0.00018783,2]
[357698807,1744348238887,-300.0,0.00018913,2]
[357698808,1744348238905,-855.90433487,0.00018914,2]
[357698809,1744348238919,-33.68566513,0.00018914,2]
[357698810,1744348238928,-393.55337889,0.00018933,2]
[357698811,1744348238939,-1606.44662111,0.00018933,2]
[357698813,1744348238949,-118.70190336,0.00019074,2]
[357698814,1744348238971,-316.05186828,0.00019074,2]
[357698815,1744348238980,-398.96,0.00019143,2]
[357698816,1744348238989,-434.75377164,0.00019188,2]
[357698817,1744348238998,-104.10936008,0.00019211,2]
[357698848,1744348240591,-74.34063992,0.00019211,2]
[357698849,1744348240603,-200.0,0.00019231,7]
[357698850,1744348240613,-1654.00453582,0.00019237,2]
[357698851,1744348240625,-2308.25546418,0.00019237,2]
[357698852,1744348240635,-150.0,0.00019248,2]
[357698853,1744348240645,-1000.0,0.00019305,2]
[357698854,1744348240655,-530.883574,0.00019399,2]
[357698855,1744348240664,-298.22096182,0.00019516,2]
[357698856,1744348240674,-797.6518777,0.00019516,2]
[357698857,1744348240687,-2037.38716048,0.00019516,2]
[357698858,1744348240696,-250.0,0.0001969,2]
[357698859,1744348240705,-434.75377164,0.00019721,2]
[357698860,1744348240714,-434.75377164,0.00019781,2]
[357698861,1744348240724,-224.3698,0.000198,2]
[357698862,1744348240736,-850.0,0.000198,2]
[357698863,1744348240745,-250.0,0.000198,2]
[357698864,1744348240755,-800.0,0.00019876,2]
[357698865,1744348240764,-89.73549624,0.00019885,2]
[357698866,1744348240801,-603.96362929,0.00019885,2]
[357698867,1744348240810,-12368.4603,0.00019886,2]
[357698868,1744348240819,-1831.3207,0.00019886,2]
[357698869,1744348240828,-659.34737071,0.00019886,2]